bitfinex-derivatives/quotes_BTCF0:USTF0_20241104
["timestamp","ask_amount","ask_price","bid_price","bid_amount"]
[1730750898108,0.07381,67785.0,67784.0,0.002]
[1730750899317,0.07381,67785.0,67784.0,0.06094324]
[1730750899524,0.07381,67785.0,67784.0,0.05894324]
[1730750899817,0.07381,67785.0,67776.0,0.0069]
[1730750899818,0.073813,67782.0,67781.0,0.05894324]
[1730750900030,0.20147394,67782.0,67781.0,0.05894324]
[1730750900213,0.20147394,67782.0,67773.0,0.16228844]
[1730750900214,0.073814,67781.0,67780.0,0.05892862]
[1730750900412,0.0312,67781.0,67779.0,0.05892862]
[1730750900720,0.0312,67781.0,67779.0,0.05892966]
[1730750901019,0.0312,67781.0,67776.0,0.14752749]
[1730750901215,0.073819,67777.0,67776.0,0.14746696]
[1730750901412,0.073819,67777.0,67776.0,0.2569864]
[1730750901612,0.07382,67776.0,67771.0,0.07364696]
[1730750901823,0.10622,67776.0,67774.0,0.0589245]
[1730750902014,0.66432632,67775.0,67766.0,0.00221298]
[1730750902317,0.07383,67767.0,67766.0,0.00221298]
[1730750903010,0.54931,67767.0,67756.0,0.0069]
[1730750903213,0.12766094,67760.0,67753.0,0.073844]
[1730750903422,0.073841,67757.0,67756.0,1.5]
[1730750905127,0.074841,67757.0,67756.0,0.005]
[1730750905826,0.074841,67757.0,67756.0,0.008]
[1730750907623,0.09894513,67757.0,67756.0,0.008]
[1730750908629,0.54170513,67757.0,67746.0,0.0069]
[1730750908825,0.073856,67743.0,67741.0,0.0069]
[1730750909132,0.073859,67740.0,67739.0,0.00221384]
[1730750910730,0.074859,67740.0,67739.0,0.01221384]
[1730750911135,0.075859,67740.0,67739.0,0.01821384]
[1730750912031,0.074859,67740.0,67739.0,0.00821384]
[1730750912227,0.074859,67740.0,67739.0,0.01221384]
[1730750912738,0.074859,67740.0,67739.0,0.00621384]
[1730750913829,0.00437549,67742.0,67739.0,0.11652438]
[1730750914019,0.073858,67741.0,67740.0,0.07322559]
[1730750914334,0.073859,67740.0,67739.0,0.07943943]
[1730750914537,0.073851,67747.0,67743.0,0.073855]
[1730750914829,0.073855,67744.0,67743.0,0.073855]
[1730750916231,0.073855,67744.0,67743.0,0.074855]
[1730750917229,0.073855,67744.0,67743.0,0.001]
[1730750917537,0.434655,67744.0,67743.0,0.001]
[1730750921634,0.073855,67744.0,67743.0,0.07420251]
[1730750921942,0.073855,67744.0,67743.0,0.074856]
[1730750922130,0.073855,67744.0,67743.0,0.25672734]
[1730750922330,0.073855,67744.0,67743.0,0.27142214]
[1730750922526,0.073855,67744.0,67743.0,0.18346106]
[1730750922941,0.073855,67744.0,67743.0,0.2714227]
[1730750923336,0.073855,67744.0,67743.0,0.1836023]
[1730750923546,0.03689585,67744.0,67743.0,0.1836023]
[1730750924242,0.03689585,67744.0,67743.0,0.31297237]
[1730750924742,0.03689585,67744.0,67743.0,0.1836023]
[1730750925140,0.03689585,67744.0,67743.0,0.27166379]
[1730750925339,0.03689585,67744.0,67743.0,0.1836023]
[1730750925837,0.03689585,67744.0,67743.0,0.31305874]
[1730750926641,0.1147641,67748.0,67743.0,0.23920274]
[1730750926841,0.1147641,67748.0,67747.0,0.073851]
[1730750926842,0.10363835,67748.0,67747.0,0.073851]
[1730750927036,0.10363835,67748.0,67747.0,0.31205374]
[1730750928237,0.02978735,67748.0,67747.0,0.31205374]
[1730750928541,0.12766094,67753.0,67749.0,0.073849]
[1730750928542,0.073849,67750.0,67749.0,0.073849]
[1730750928743,0.0221116,67750.0,67749.0,0.31205174]
[1730750928941,0.02908163,67753.0,67749.0,0.3608]
[1730750929142,0.073842,67756.0,67752.0,0.073846]
[1730750929438,0.13796094,67762.0,67753.0,0.18088105]
[1730750929638,0.13796094,67762.0,67753.0,0.10734493]
[1730750929838,0.13796094,67762.0,67753.0,1.60734493]
[1730750930034,0.03118141,67754.0,67753.0,1.60734493]
[1730750930239,0.00221446,67754.0,67753.0,1.68118993]
[1730750931342,0.00221446,67754.0,67753.0,1.76943328]
[1730750932044,0.00221446,67754.0,67753.0,1.77043328]
[1730750932448,0.00221446,67754.0,67753.0,1.68218993]
[1730750933247,0.00221446,67754.0,67753.0,1.68118993]
[1730750933435,0.03000495,67757.0,67753.0,1.8101604]
[1730750933636,0.073836,67761.0,67760.0,0.073836]
[1730750933833,0.073836,67761.0,67760.0,0.18118093]
[1730750934242,0.073836,67761.0,67760.0,0.25484748]
[1730750935138,0.078836,67761.0,67760.0,0.25584748]
[1730750935346,0.078836,67761.0,67760.0,0.14850255]
[1730750936343,0.078836,67761.0,67760.0,0.074836]
[1730750936546,0.081836,67761.0,67760.0,0.074836]
[1730750937450,0.081836,67761.0,67760.0,0.104936]
[1730750940652,0.081836,67761.0,67760.0,0.17860255]
[1730750941444,0.081836,67761.0,67760.0,0.104936]
[1730750943052,0.008,67761.0,67760.0,0.104936]
[1730750944158,0.07269212,67761.0,67760.0,0.104936]
[1730750944748,0.10121928,67761.0,67760.0,0.104936]
[1730750944947,0.07269212,67761.0,67760.0,0.104936]
[1730750945551,0.07269212,67761.0,67760.0,0.465736]
[1730750948650,0.14652812,67761.0,67760.0,0.001]
[1730750948851,0.44276,67760.0,67747.0,0.0306]
[1730750949052,0.12766094,67751.0,67749.0,0.073849]
[1730750949259,0.18387153,67750.0,67749.0,0.073849]
[1730750949651,0.11002253,67750.0,67749.0,0.073849]
[1730750950151,0.06469216,67750.0,67749.0,0.073849]
[1730750950352,0.073843,67755.0,67749.0,0.073849]
[1730750950551,0.18387884,67754.0,67753.0,0.073845]
[1730750950948,0.073844,67754.0,67753.0,0.11800652]
[1730750951352,0.073844,67754.0,67753.0,0.11804259]
[1730750952156,0.073844,67754.0,67753.0,0.073845]
[1730750952356,0.073844,67754.0,67753.0,0.074845]
[1730750953159,0.074844,67754.0,67753.0,0.074845]
[1730750953351,0.001,67754.0,67753.0,0.074845]
[1730750953557,0.001,67754.0,67753.0,0.435645]
[1730750954265,0.001,67754.0,67753.0,1.935645]
[1730750958868,0.074844,67754.0,67753.0,0.435645]
[1730750960267,0.13953973,67754.0,67753.0,0.435645]
[1730750960971,0.10337275,67754.0,67753.0,0.435645]
[1730750962667,0.13309006,67754.0,67753.0,0.435645]
[1730750965969,0.10456131,67754.0,67753.0,0.435645]
[1730750966165,0.10456131,67754.0,67753.0,0.49467979]
[1730750967172,0.10456131,67754.0,67753.0,0.435645]
[1730750967871,0.10456131,67754.0,67753.0,0.13387338]
[1730750971979,0.03071731,67754.0,67753.0,0.13387338]
[1730750972184,0.10456131,67754.0,67753.0,0.13387338]
[1730750972481,0.10456131,67754.0,67753.0,0.13387183]
[1730750972662,0.10456131,67754.0,67753.0,0.074845]
[1730750973974,0.16926228,67754.0,67753.0,0.074845]
[1730750975977,0.16926198,67754.0,67753.0,0.074845]
[1730750980482,0.21459602,67754.0,67753.0,0.074845]
[1730750980982,0.10456131,67754.0,67753.0,0.074845]
[1730750982374,0.10456131,67754.0,67753.0,0.14863504]
[1730750982585,0.10456131,67754.0,67753.0,0.074845]
[1730750983173,0.10456131,67754.0,67753.0,0.14863504]
[1730750983374,0.10456131,67754.0,67753.0,0.074845]
[1730750983777,0.10456131,67754.0,67753.0,0.14863504]
[1730750984089,0.10456131,67754.0,67753.0,0.25686334]
[1730750986986,0.10456131,67754.0,67753.0,0.074845]
[1730750987290,0.18837743,67754.0,67753.0,0.074845]
[1730750987683,0.27219355,67754.0,67753.0,0.001]
[1730750987884,0.71499355,67754.0,67753.0,0.001]
[1730750988081,0.74529355,67754.0,67753.0,0.001]
[1730750989594,0.70540639,67754.0,67753.0,0.001]
[1730750992083,0.26260639,67754.0,67753.0,0.001]
[1730750993790,0.62340639,67754.0,67753.0,0.001]
[1730750996097,0.65194257,67754.0,67753.0,0.001]
[1730750997796,0.77968765,67754.0,67753.0,0.001]
[1730750998091,0.65194257,67754.0,67753.0,0.001]
[1730750998299,0.87349379,67754.0,67753.0,0.001]
[1730750999702,1.00123887,67754.0,67753.0,0.001]
[1730751000601,0.073855,67744.0,67743.0,0.0069]
[1730751000899,0.073855,67744.0,67739.0,0.00221384]
[1730751000900,0.073858,67741.0,67739.0,0.00221384]
[1730751001110,0.13857106,67741.0,67739.0,0.00221384]
[1730751002300,0.073858,67741.0,67739.0,0.00221384]
[1730751002499,0.10239726,67741.0,67739.0,0.00221384]
[1730751003010,0.10339726,67741.0,67740.0,0.0321]
[1730751003710,0.10339726,67741.0,67740.0,0.0361]
[1730751003893,0.11223704,67741.0,67740.0,0.09518598]
[1730751004095,0.11223704,67741.0,67740.0,0.0361]
[1730751004301,0.11223704,67741.0,67740.0,0.0950461]
[1730751004491,0.11223704,67741.0,67740.0,0.0361]
[1730751005395,0.11223704,67741.0,67740.0,0.109959]
[1730751005803,0.11223704,67741.0,67740.0,0.09503969]
[1730751006101,0.11223704,67741.0,67740.0,0.109959]
[1730751011408,0.19607418,67741.0,67740.0,0.109959]
[1730751012703,0.19607418,67741.0,67740.0,0.0361]
[1730751015298,0.19607418,67741.0,67740.0,0.09504866]
[1730751015503,0.19607418,67741.0,67740.0,0.0361]
[1730751016212,0.19607418,67741.0,67740.0,0.09510599]
[1730751016414,0.19607418,67741.0,67740.0,0.0361]
[1730751018112,0.19607418,67741.0,67740.0,0.109959]
[1730751018615,0.30947418,67741.0,67740.0,0.109959]
[1730751019113,0.37419007,67741.0,67740.0,0.109959]
[1730751019818,0.37418904,67741.0,67740.0,0.109959]
[1730751021414,0.33801137,67741.0,67740.0,0.0361]
[1730751022013,0.33801137,67741.0,67740.0,0.109959]
[1730751022405,0.30947418,67741.0,67740.0,0.109959]
[1730751023517,0.3380125,67741.0,67740.0,0.109959]
[1730751023814,0.06691736,67741.0,67740.0,0.109959]
[1730751024802,0.14077536,67741.0,67740.0,0.109959]
[1730751026219,0.11223704,67741.0,67740.0,0.21938733]
[1730751027616,0.08383714,67746.0,67740.0,0.14552833]
[1730751027809,0.073854,67746.0,67745.0,0.073853]
[1730751028016,0.073854,67746.0,67745.0,0.18328133]
[1730751028220,0.11112771,67746.0,67745.0,0.3021978]
[1730751028721,0.07385,67749.0,67748.0,0.073846]
[1730751029025,0.07385,67749.0,67748.0,0.18327433]
[1730751029316,0.07385,67749.0,67748.0,1.7718908]
[1730751029513,0.07385,67749.0,67748.0,1.68327433]
[1730751029916,0.07385,67749.0,67748.0,1.71657433]
[1730751030524,0.001,67749.0,67748.0,1.71757433]
[1730751031015,0.001,67749.0,67748.0,1.72157433]
[1730751033027,0.001,67749.0,67748.0,2.16437433]
[1730751033224,0.001,67749.0,67748.0,1.72157433]
[1730751034215,0.0295318,67749.0,67748.0,2.054946]
[1730751034421,0.2636327,67758.0,67757.0,0.073841]
[1730751034619,0.2533327,67758.0,67757.0,0.795441]
[1730751035024,0.2533327,67758.0,67757.0,0.828041]
[1730751035234,0.1794937,67758.0,67757.0,0.828041]
[1730751035732,0.1854937,67758.0,67757.0,0.828041]
[1730751037027,0.1854937,67758.0,67757.0,1.46803814]
[1730751037028,0.1834937,67758.0,67757.0,1.46803814]
[1730751037224,0.0103,67767.0,67766.0,0.073831]
[1730751037422,0.073825,67772.0,67771.0,0.073825]
[1730751037725,0.10998679,67772.0,67771.0,0.073825]
[1730751038132,0.14661924,67772.0,67771.0,0.073825]
[1730751038520,0.07279042,67772.0,67771.0,0.106525]
[1730751038826,0.07279051,67772.0,67771.0,0.106525]
[1730751039231,0.07279063,67772.0,67771.0,0.106525]
[1730751039429,0.15761463,67772.0,67771.0,0.106525]
[1730751040522,0.16961463,67772.0,67771.0,0.107525]
[1730751040725,0.05963245,67772.0,67771.0,0.107525]
[1730751042233,0.023,67772.0,67771.0,0.107525]
[1730751046437,0.096824,67772.0,67771.0,0.107525]
[1730751049245,0.096824,67772.0,67770.0,0.08383714]
[1730751049246,0.24312993,67772.0,67770.0,0.07314647]
[1730751049437,0.11001216,67771.0,67770.0,0.07314647]
[1730751050446,0.10234949,67771.0,67770.0,0.074826]
[1730751050752,0.13850769,67771.0,67770.0,0.001]
[1730751050954,0.17080769,67771.0,67770.0,0.001]
[1730751051446,0.073833,67765.0,67764.0,0.073833]
[1730751051655,0.13851569,67765.0,67764.0,0.073833]
[1730751053048,0.06468269,67765.0,67764.0,0.073833]
[1730751053345,0.06868269,67765.0,67764.0,0.073833]
[1730751053549,0.07468269,67765.0,67764.0,1.574833]
[1730751055344,0.14851469,67765.0,67764.0,1.574833]
[1730751055540,0.19384013,67765.0,67764.0,1.574833]
[1730751055746,0.14851469,67765.0,67764.0,1.574833]
[1730751056242,0.083832,67765.0,67764.0,1.574833]
[1730751057662,0.01,67765.0,67764.0,1.68379909]
[1730751062056,0.083832,67765.0,67764.0,1.68379909]
[1730751064150,0.11235761,67765.0,67764.0,1.574833]
[1730751066151,0.11235761,67765.0,67764.0,1.501]
[1730751066356,0.19619475,67765.0,67756.0,0.3677]
[1730751066547,0.073841,67757.0,67756.0,0.3608]
[1730751066861,0.073851,67748.0,67747.0,1.573851]
[1730751067159,0.10237661,67748.0,67747.0,1.573851]
[1730751068655,0.073851,67748.0,67747.0,1.573851]
[1730751068957,0.10238294,67748.0,67747.0,1.573851]
[1730751069158,0.073847,67751.0,67750.0,0.073845]
[1730751069366,0.10237928,67751.0,67750.0,0.073845]
[1730751069957,0.073847,67751.0,67750.0,0.073845]
[1730751070161,0.10237913,67751.0,67750.0,0.073845]
[1730751071250,0.03564787,67753.0,67750.0,0.31746807]
[1730751071448,0.073846,67752.0,67751.0,0.18362122]
[1730751072259,0.073846,67752.0,67751.0,0.2720001]
[1730751072562,0.074846,67752.0,67751.0,0.2740001]
[1730751072761,0.03789193,67752.0,67751.0,0.2740001]
[1730751073762,0.03789193,67752.0,67751.0,0.18562122]
[1730751074058,0.03789193,67752.0,67751.0,0.2740001]
[1730751074354,0.03789193,67752.0,67751.0,0.18562122]
[1730751074554,0.03789193,67752.0,67751.0,0.2740001]
[1730751074756,0.03789193,67752.0,67751.0,0.18492981]
[1730751074951,0.03889193,67752.0,67751.0,0.19492981]
[1730751075850,0.002,67752.0,67751.0,0.19492981]
[1730751076051,0.002,67752.0,67751.0,0.31530869]
[1730751076647,0.002,67752.0,67751.0,1.81530869]
[1730751076849,0.002,67752.0,67751.0,1.72692981]
[1730751077962,0.075846,67752.0,67751.0,1.72692981]
[1730751078661,0.03623987,67756.0,67751.0,1.78295925]
[1730751078965,0.073845,67755.0,67754.0,0.16218656]
[1730751079160,0.073845,67755.0,67754.0,0.27127037]
[1730751079349,0.073845,67755.0,67754.0,0.073843]
[1730751079751,0.073837,67760.0,67759.0,0.073836]
[1730751079955,0.00221429,67762.0,67761.0,0.073836]
[1730751080152,0.00221429,67762.0,67761.0,0.25534201]
[1730751080362,0.00221429,67762.0,67761.0,0.18172127]
[1730751081058,0.00221429,67762.0,67761.0,0.62444127]
[1730751081362,0.084127,67770.0,67769.0,0.073828]
[1730751081573,0.073824,67772.0,67771.0,0.073821]
[1730751082861,0.11123183,67772.0,67771.0,0.073821]
[1730751083466,0.12223183,67772.0,67771.0,0.073821]
[1730751086271,0.18691876,67772.0,67771.0,0.073821]
[1730751086466,0.1507567,67772.0,67771.0,0.073821]
[1730751088277,0.18691857,67772.0,67771.0,0.073821]
[1730751088577,0.19091857,67772.0,67771.0,0.073821]
[1730751092472,0.1547567,67772.0,67771.0,0.073821]
[1730751093082,0.1547565,67772.0,67771.0,0.073821]
[1730751093281,0.19091831,67772.0,67771.0,0.073821]
[1730751094277,0.12623183,67772.0,67771.0,0.073821]
[1730751101493,0.19091742,67772.0,67771.0,0.073821]
[1730751101684,0.07968559,67772.0,67771.0,1.573821]
[1730751101881,0.04352428,67772.0,67771.0,1.573821]
[1730751102085,0.015,67772.0,67771.0,1.573821]
[1730751102684,0.015,67772.0,67771.0,2.048601]
[1730751105797,0.015,67772.0,67771.0,2.08428585]
[1730751108799,0.015,67772.0,67771.0,2.16808371]
[1730751112118,0.015,67772.0,67771.0,2.52888371]
[1730751114212,0.015,67772.0,67771.0,2.64172371]
[1730751116406,0.015,67772.0,67771.0,0.073821]
[1730751116598,0.073833,67765.0,67754.0,0.08379786]
[1730751116802,0.073843,67756.0,67755.0,0.073843]
[1730751117117,0.46316833,67756.0,67755.0,1.5]
[1730751117306,0.073848,67750.0,67749.0,0.073849]
[1730751117607,0.073851,67747.0,67746.0,0.434652]
[1730751117809,0.10237633,67747.0,67746.0,1.934652]
[1730751118207,0.02852533,67747.0,67746.0,1.934652]
[1730751118404,0.001,67756.0,67746.0,1.8608]
[1730751118405,0.10237533,67748.0,67746.0,1.8608]
[1730751118613,0.02852533,67747.0,67746.0,1.934653]
[1730751118803,0.001,67756.0,67747.0,0.073849]
[1730751118804,0.073851,67748.0,67747.0,0.073849]
[1730751119308,0.07384,67758.0,67746.0,1.99152239]
[1730751119507,0.073848,67750.0,67749.0,0.073847]
[1730751119808,0.073842,67756.0,67749.0,0.073847]
[1730751120012,0.02853017,67755.0,67754.0,0.434644]
[1730751120203,0.10237317,67755.0,67754.0,0.434644]
[1730751120714,0.10237304,67755.0,67754.0,0.434644]
[1730751121609,0.10237304,67755.0,67754.0,0.437644]
[1730751121815,0.10337304,67755.0,67754.0,0.437644]
[1730751122016,0.074843,67755.0,67754.0,0.437644]
[1730751122312,0.02952953,67755.0,67754.0,0.437644]
[1730751122511,0.001,67755.0,67754.0,0.437644]
[1730751123015,0.002,67755.0,67754.0,0.448644]
[1730751123406,0.03159764,67764.0,67754.0,0.68508898]
[1730751123609,0.073835,67762.0,67761.0,0.08829065]
[1730751123815,0.073835,67762.0,67761.0,0.19619082]
[1730751124516,0.073835,67762.0,67761.0,0.10790017]
[1730751125510,0.074835,67762.0,67761.0,0.10790017]
[1730751127005,0.075835,67762.0,67761.0,0.11390017]
[1730751128109,0.075835,67762.0,67761.0,0.18744073]
[1730751128512,0.075835,67762.0,67761.0,0.11253874]
[1730751128818,0.075835,67762.0,67761.0,0.18607302]
[1730751129013,0.075835,67762.0,67761.0,0.18608627]
[1730751129209,0.075835,67762.0,67761.0,0.07953428]
[1730751129913,0.075835,67762.0,67761.0,0.18636709]
[1730751130112,0.075835,67762.0,67761.0,0.11253109]
[1730751130719,0.075835,67762.0,67761.0,0.18636709]
[1730751130915,0.075835,67762.0,67761.0,0.11253109]
[1730751131615,0.075835,67762.0,67761.0,0.006]
[1730751132822,0.073837,67760.0,67755.0,0.04410764]
[1730751133024,0.073844,67754.0,67752.0,0.04410764]
[1730751133319,0.073846,67752.0,67749.0,0.04410912]
[1730751133518,0.073848,67750.0,67749.0,0.04410912]
[1730751134125,0.073849,67749.0,67748.0,0.11795912]
[1730751135424,0.073849,67749.0,67748.0,0.07785]
[1730751136917,0.082849,67749.0,67748.0,0.07785]
[1730751138131,0.082849,67749.0,67748.0,0.12195912]
[1730751138512,0.082849,67749.0,67748.0,0.07785]
[1730751140620,0.009,67749.0,67748.0,0.07785]
[1730751146229,0.073839,67759.0,67758.0,0.07384]
[1730751146535,0.073839,67759.0,67758.0,0.18083525]
[1730751146921,0.073839,67759.0,67758.0,0.18080095]
[1730751148528,0.073839,67759.0,67758.0,0.18280095]
[1730751148723,0.074839,67759.0,67758.0,0.19180095]
[1730751151630,0.074839,67759.0,67758.0,0.19172503]
[1730751154334,0.074839,67759.0,67758.0,0.08484]
[1730751155626,0.10336808,67759.0,67758.0,0.08484]
[1730751157732,0.23109047,67759.0,67758.0,0.011]
[1730751157932,0.26725956,67759.0,67758.0,0.011]
[1730751158530,0.13953717,67759.0,67758.0,0.011]
[1730751161437,0.15865429,67759.0,67758.0,0.19194032]
[1730751162141,0.15865429,67759.0,67758.0,1.69194032]
[1730751165147,0.074839,67759.0,67758.0,1.69194032]
[1730751165353,0.074839,67759.0,67758.0,1.78034861]
[1730751165542,0.074839,67759.0,67758.0,1.69194032]
[1730751166744,0.001,67759.0,67758.0,1.81946877]
[1730751167435,0.001,67759.0,67758.0,2.18026877]
[1730751167636,0.001,67759.0,67758.0,2.14130391]
[1730751167840,0.001,67759.0,67758.0,2.17963115]
[1730751168342,0.3608,67766.0,67763.0,0.073832]
[1730751168343,0.073834,67764.0,67763.0,0.073832]
[1730751169639,0.076834,67764.0,67763.0,0.073832]
[1730751170955,0.076834,67764.0,67763.0,0.077832]
[1730751171460,0.076834,67764.0,67763.0,0.13686136]
[1730751171652,0.16064929,67764.0,67763.0,0.13686136]
[1730751171854,0.16064929,67764.0,67763.0,0.04827371]
[1730751172055,0.16064929,67764.0,67763.0,0.004]
[1730751172257,0.60336929,67764.0,67763.0,0.004]
[1730751172551,0.60336929,67764.0,67756.0,0.04427371]
[1730751172552,0.073841,67757.0,67756.0,0.04427371]
[1730751172858,0.073842,67756.0,67755.0,0.04427371]
[1730751173447,0.1277282,67759.0,67753.0,0.05902936]
[1730751173643,0.1277282,67759.0,67758.0,0.04427566]
[1730751173852,0.2015662,67759.0,67758.0,0.04427566]
[1730751174051,0.2015662,67759.0,67757.0,0.04427566]
[1730751174052,0.1277282,67759.0,67757.0,0.04427566]
[1730751174260,0.07384,67758.0,67757.0,0.04427566]
[1730751175457,0.07384,67758.0,67757.0,0.05627566]
[1730751176150,0.07484,67758.0,67757.0,0.05527566]
[1730751176552,0.1395413,67758.0,67757.0,0.011]
[1730751177651,0.10337121,67758.0,67757.0,0.011]
[1730751177854,0.13954132,67758.0,67757.0,0.011]
[1730751179355,0.17571235,67758.0,67757.0,0.011]
[1730751179559,0.13954224,67758.0,67757.0,0.011]
[1730751180255,0.18337561,67758.0,67757.0,0.011]
[1730751181352,0.17837561,67758.0,67757.0,0.011]
[1730751183565,0.11367337,67758.0,67757.0,0.07002936]
[1730751184062,0.11367337,67758.0,67757.0,0.011]
[1730751184660,0.11367337,67758.0,67757.0,0.07002936]
[1730751184859,0.11367337,67758.0,67757.0,0.011]
[1730751185668,0.11367337,67758.0,67757.0,0.14387036]
[1730751185858,0.11367337,67758.0,67757.0,0.084841]
[1730751186366,0.11367337,67758.0,67757.0,0.445641]
[1730751186567,0.11367337,67758.0,67757.0,0.084841]
[1730751187568,0.11367337,67758.0,67757.0,0.14386595]
[1730751188068,0.11367337,67758.0,67757.0,0.084841]
[1730751189268,0.11367337,67758.0,67757.0,0.011]
[1730751189562,0.24140157,67758.0,67757.0,0.07003107]
[1730751189763,0.24140157,67758.0,67757.0,0.011]
[1730751191565,0.26993331,67758.0,67757.0,0.011]
[1730751191969,0.26993304,67758.0,67757.0,0.011]
[1730751192863,0.17837551,67758.0,67757.0,0.011]
[1730751194268,0.17837551,67758.0,67757.0,0.084841]
[1730751194863,0.14220484,67758.0,67757.0,0.084841]
[1730751196071,0.17837343,67758.0,67757.0,0.084841]
[1730751196371,0.14220484,67758.0,67757.0,0.084841]
[1730751198466,0.11367337,67758.0,67757.0,0.084841]
[1730751203569,0.11367337,67758.0,67757.0,0.011]
[1730751204380,0.1974858,67758.0,67757.0,0.011]
[1730751204575,0.1974858,67758.0,67757.0,0.05531621]
[1730751204972,0.1974858,67758.0,67757.0,0.011]
[1730751205271,0.11367337,67758.0,67757.0,0.011]
[1730751205581,0.1974858,67758.0,67757.0,0.011]
[1730751209188,0.11367337,67758.0,67757.0,0.011]
[1730751212585,0.14984283,67758.0,67757.0,0.011]
[1730751213684,0.14984283,67758.0,67757.0,0.0426]
[1730751215293,0.11367337,67758.0,67757.0,0.0426]
[1730751221696,0.11367337,67758.0,67757.0,1.5426]
[1730751223508,0.47447337,67758.0,67757.0,1.5426]
[1730751223698,0.5582858,67758.0,67757.0,0.011]
[1730751229403,0.66833085,67758.0,67757.0,0.011]
[1730751229606,0.81418913,67758.0,67757.0,0.011]
[1730751230117,0.66833085,67758.0,67757.0,0.011]
[1730751234012,0.17837878,67758.0,67757.0,0.011]
[1730751235321,0.14220639,67758.0,67757.0,0.011]
[1730751237516,0.11367337,67758.0,67757.0,0.011]
[1730751243415,0.11367337,67758.0,67757.0,0.0552962]
[1730751244516,0.22370869,67758.0,67757.0,0.011]
[1730751244709,0.3841528,67758.0,67757.0,0.011]
[1730751244913,0.43712712,67758.0,67757.0,0.00737231]
[1730751245823,0.27668301,67758.0,67757.0,0.00737231]
[1730751247520,0.22370869,67758.0,67757.0,0.00737231]
[1730751248420,0.17837306,67758.0,67757.0,0.00737231]
[1730751248624,0.11103573,67758.0,67757.0,0.44201331]
[1730751248827,0.16192579,67758.0,67757.0,0.44201331]
[1730751249125,0.18487573,67758.0,67757.0,0.44201331]
[1730751249311,0.18487573,67758.0,67757.0,0.00737231]
[1730751249516,0.34580152,67758.0,67757.0,0.00737231]
[1730751249715,0.18487573,67758.0,67757.0,0.00737231]
[1730751252614,0.07484,67758.0,67757.0,0.00737231]
[1730751259523,0.18487729,67758.0,67757.0,0.00737231]
[1730751260919,0.18487729,67758.0,67750.0,0.3608]
[1730751260920,0.073847,67751.0,67750.0,0.3608]
[1730751261221,0.15765943,67751.0,67750.0,0.3608]
[1730751261430,0.26770176,67751.0,67750.0,0.3608]
[1730751262221,0.26870176,67751.0,67750.0,0.3618]
[1730751262424,0.26870176,67751.0,67750.0,0.3648]
[1730751262629,0.26870139,67751.0,67750.0,0.3648]
[1730751262924,0.34811753,67751.0,67750.0,0.3648]
[1730751263133,0.42962718,67751.0,67750.0,0.004]
[1730751263327,0.42962718,67751.0,67745.0,1.5]
[1730751263328,0.073849,67749.0,67745.0,1.5]
[1730751263532,0.073849,67749.0,67742.0,0.434656]
[1730751263831,0.18389096,67749.0,67742.0,0.434656]
[1730751264031,0.073858,67741.0,67740.0,0.0069]
[1730751264236,0.073858,67741.0,67736.0,0.073863]
[1730751264237,0.073862,67737.0,67736.0,0.0328]
[1730751264530,0.15767443,67737.0,67736.0,0.0328]
[1730751264731,0.26772782,67737.0,67736.0,0.0328]
[1730751264922,0.22237824,67737.0,67736.0,0.0328]
[1730751265925,0.22437824,67737.0,67736.0,0.0328]
[1730751266832,0.22537824,67737.0,67736.0,0.0328]
[1730751267024,0.26972038,67737.0,67736.0,0.0328]
[1730751267634,0.20501657,67737.0,67736.0,0.0328]
[1730751270132,0.20501657,67737.0,67736.0,0.106663]
[1730751270923,0.20501657,67737.0,67736.0,0.467463]
[1730751272924,0.076862,67737.0,67736.0,0.467463]
[1730751273320,0.16067443,67737.0,67736.0,0.467463]
[1730751273534,0.003,67737.0,67736.0,0.467463]
[1730751273719,0.003,67737.0,67736.0,0.98419115]
[1730751273923,0.003,67737.0,67736.0,1.01567663]
[1730751274537,0.076862,67737.0,67736.0,1.01567663]
[1730751275237,0.076862,67737.0,67736.0,0.57275186]
[1730751278227,0.003,67737.0,67736.0,0.57275186]
[1730751279929,0.003,67737.0,67736.0,0.57282152]
[1730751282627,0.003,67737.0,67736.0,0.467463]
[1730751286847,0.16067443,67737.0,67736.0,0.467463]
[1730751289642,0.16067443,67737.0,67736.0,0.57309328]
[1730751292736,0.16767443,67737.0,67736.0,0.57309328]
[1730751295344,0.16767443,67737.0,67736.0,0.46643028]
[1730751296739,0.12235109,67737.0,67729.0,1.5]
[1730751296943,0.15768243,67730.0,67729.0,1.57387]
[1730751297141,0.18622109,67730.0,67729.0,1.57387]
[1730751297644,0.02853866,67730.0,67729.0,1.57387]
[1730751297838,0.08381243,67736.0,67729.0,1.57387]
[1730751298032,0.15767543,67736.0,67735.0,0.434665]
[1730751298247,0.18621251,67736.0,67735.0,0.434665]
[1730751299242,0.18721251,67736.0,67735.0,0.434665]
[1730751299750,0.19521251,67736.0,67735.0,0.434665]
[1730751301848,0.19521313,67736.0,67735.0,0.434665]
[1730751304449,0.19521313,67736.0,67735.0,0.3608]
[1730751304751,0.16667543,67736.0,67735.0,0.3608]
[1730751304953,0.16667543,67736.0,67735.0,0.46650268]
[1730751306450,0.16667543,67736.0,67735.0,0.54033765]
[1730751306646,0.16667543,67736.0,67735.0,0.46650268]
[1730751307660,0.15767543,67736.0,67735.0,0.46750268]
[1730751307853,0.15767543,67736.0,67735.0,0.3618]
[1730751308461,0.15767543,67736.0,67735.0,0.3608]
[1730751308753,0.15867543,67736.0,67735.0,0.3618]
[1730751308949,0.15967543,67736.0,67735.0,0.3618]
[1730751309257,0.15967543,67736.0,67735.0,0.50949453]
[1730751310757,0.15967543,67736.0,67735.0,0.54131542]
[1730751315551,0.15967543,67736.0,67735.0,0.54212368]
[1730751316153,0.08581243,67736.0,67735.0,0.54212368]
[1730751316364,0.08581243,67736.0,67735.0,0.63074146]
[1730751317155,0.08581243,67736.0,67735.0,0.54212368]
[1730751317457,0.08581243,67736.0,67735.0,0.63075581]
[1730751317648,0.15967543,67736.0,67735.0,0.63075581]
[1730751318561,0.15967543,67736.0,67735.0,0.54212368]
[1730751318562,0.1227148,67736.0,67735.0,0.54212368]